fUSD/lending_fUSD_20250301
["ID","MTS","AMOUNT","RATE_DAILY","PERIOD"]
[355013341,1740868169068,-1434.99047264,0.000149,2]
[355013354,1740868232089,-773.17146163,0.000149,2]
[355013355,1740868232100,-343.938596,0.000149,2]
[355013356,1740868232111,-161.00670323,0.000149,2]
[355013358,1740868232122,-786.38,0.0001499,2]
[355013359,1740868232132,-786.38,0.0001499,2]
[355013360,1740868232143,-600.06079199,0.00014999,2]
[355013361,1740868232153,-300.0,0.00015,2]
[355013362,1740868232348,-733064.19610335,0.00015,2]
[355013363,1740868232406,-4343.91203711,0.00015,2]
[355013364,1740868232486,-900.0,0.00015,2]
[355013365,1740868232498,-276.0,0.00015,2]
[355013367,1740868232510,-309.75976731,0.00015,2]
[355013369,1740868232522,-130884.56875525,0.00015,2]
[355013372,1740868232545,-738.28295851,0.00015,2]
[355013374,1740868232556,-714.21207113,0.00015,2]
[355013376,1740868232567,-1162.72293325,0.00015,2]
[355013658,1740868240259,-160.15904,0.00014973,2]
[355013660,1740868240268,-2121.59536,0.00015,2]
[355013981,1740868243314,-4104.2072107,0.00015,2]
[355014261,1740868246177,-2657.5874094,0.00015,2]
[355014270,1740868246289,-1570.99031735,0.00015,2]
[355014287,1740868246447,-1236.22181962,0.000149,2]
[355014290,1740868246463,-549.83398038,0.000149,2]
[355014292,1740868246472,-1869.87001962,0.00015,2]
[355014294,1740868246484,-3219.53060999,0.00015,2]
[355018099,1740868770251,15209.13,0.000148,2]
[355018100,1740868870698,291.34205,0.0001485,2]
[355018729,1740869298229,-832.38,0.000149,2]
[355018730,1740869298274,-5115.25037251,0.000149,2]
[355018731,1740869298332,-4156.24751354,0.000149,2]
[355018732,1740869323147,-44.49331395,0.000149,2]
[355018733,1740869323197,-1000.0,0.000149,2]
[355018734,1740869323245,-264.1036,0.000149,2]
[355018735,1740869323293,-4841.11101628,0.000149,2]
[355018736,1740869323357,-912.18721985,0.000149,2]
[355018737,1740869323405,-2101.06771738,0.000149,2]
[355018738,1740869348287,-300.0,0.00014899,2]
[355018739,1740869348337,-424.78303817,0.000149,2]
[355018740,1740869348384,-1000.0,0.000149,2]
[355018741,1740869348433,-1258.50016259,0.000149,2]
[355018742,1740869397617,-163.68825759,0.000149,2]
[355018743,1740869397665,-151.95701083,0.000149,2]
[355018744,1740869397715,-1000.0,0.000149,2]
[355018745,1740869397763,-1645.2933791,0.000149,2]
[355018769,1740869432453,-571.18417672,0.000149,2]
[355018771,1740869432463,-3.78707985,0.00014999,2]
[355018773,1740869432476,-617.5836701,0.00014999,2]
[355018775,1740869432486,-500.0,0.00014999,2]
[355018777,1740869432496,-119.44383816,0.00014999,2]
[355018780,1740869432510,-428.61092128,0.00014999,2]
[355018781,1740869432520,-156.24907972,0.00014999,2]
[355018782,1740869432532,-343.75092028,0.00014999,2]
[355018783,1740869432544,-294.97633452,0.00014999,2]
[355018784,1740869432555,-4851.7514982,0.00015,2]
[355018785,1740869432568,-637.44999998,0.00015,2]
[355018786,1740869432579,-643.73175955,0.00015,2]
[355018787,1740869432591,-12938.70845107,0.00015,2]
[355018788,1740869432611,-48077.08326464,0.00015,2]
[355018789,1740869432623,-1591.67605475,0.00015,2]
[355018790,1740869432635,-286.24606077,0.00015,2]
[355018791,1740869432794,-1486.97959309,0.00015,2]
[355018792,1740869432806,-5008.0021072,0.00015,2]
[355018793,1740869432840,-3600.54847844,0.00015,2]
[355018794,1740869432852,-2039.72645244,0.00015,2]
[355018796,1740869434983,630.17284969,0.000142,2]
[355018797,1740869438390,-356.34819606,0.00015,2]
[355018798,1740869438412,-908.52551677,0.00015,2]
[355018799,1740869438424,-22217.14766714,0.00015,2]
[355018846,1740869440417,-388.345,0.00015,2]
[355018848,1740869440430,-311.4489,0.00015,2]
[355018850,1740869440442,-2976.20822404,0.00015,2]
[355018852,1740869440455,-3583.06796825,0.00015,2]
[355018855,1740869440473,-17890.61875854,0.00015,2]
[355018857,1740869440485,-1600.65,0.00015,2]
[355018859,1740869440497,-472.68,0.00015,2]
[355018862,1740869440509,-301.92197159,0.00015,2]
[355018865,1740869440533,-2034.52399846,0.00015,2]
[355018884,1740869440718,-54957.72805995,0.00015,2]
[355018887,1740869440731,-742.50869015,0.00015,2]
[355018889,1740869440743,-19063.35960329,0.00015,2]
[355018891,1740869440755,-835.54260804,0.00015,2]
[355018893,1740869440769,-2793.02318066,0.00015,2]
[355018895,1740869440782,-380.43,0.00015,2]
[355018897,1740869440793,-2395.53353397,0.00015,2]
[355018900,1740869440807,-2590.01732083,0.00015,2]
[355018902,1740869440819,-435.38038272,0.00015,2]
[355019342,1740869445280,-22777.79725648,0.00015,2]
[355019356,1740869445410,-18823.16808943,0.00015,2]
[355019468,1740869446506,-7485.27442078,0.00015,2]
[355019470,1740869446519,-3281.0519054,0.00015,2]
[355019472,1740869446531,-1436.7213738,0.00015,2]
[355019845,1740869450621,509.84463801,0.000142,2]
[355020017,1740869455618,-1102.744514,0.00015,2]
[355020018,1740869455645,-6867.255486,0.00015,2]
[355020049,1740869494939,242.78504,0.0001485,2]
[355020050,1740869623061,250.0,0.00013,2]
[355020051,1740869655936,298.66386647,0.000145,2]
[355020052,1740869999194,-1937.7163,0.000149,2]
[355020053,1740869999219,-1000.0,0.000149,2]
[355020054,1740869999243,-189.78705457,0.000149,2]
[355020055,1740870032474,-500.0,0.000149,2]
[355020056,1740870032499,-342.65896045,0.000149,2]
[355020057,1740870280079,202.32087,0.0001485,2]
[355020063,1740870631819,-133181.68006975,0.00015,2]
[355020064,1740870631830,-168.4762885,0.00015,2]
[355020065,1740870631842,-300.0,0.00015,2]
[355020066,1740870631852,-168.60072,0.00015,2]
[355020067,1740870631863,-168.7,0.00015008,2]
[355020068,1740870631873,-578.0,0.00015699,2]
[355020069,1740870631883,-500.0,0.00016384,2]
[355020070,1740870631893,-500.0,0.0001663,2]
[355020071,1740870631904,-865.89,0.0001695,2]
[355020072,1740870631915,-350.0,0.00017,2]
[355020073,1740870631925,-151.14983736,0.0001725,5]
[355020074,1740870631935,-3742.72301474,0.000174,2]
[355020075,1740870631945,-3742.72301446,0.000174,2]
[355020076,1740870631955,-1994.82980022,0.00018102,2]
[355020077,1740870631964,-991.2806,0.00018202,2]
[355020078,1740870631975,-7001.56203503,0.00018632,3]
[355020079,1740870631985,-1000.0,0.00018701,2]
[355020080,1740870631995,-345.49,0.00018738,2]
[355020081,1740870632005,-200.0,0.00018781,2]
[355020082,1740870632015,-150.0,0.00018784,7]
[355020083,1740870632025,-24101.29,0.00018797,2]
[355020084,1740870632035,-155.3,0.00018799,2]
[355020085,1740870632045,-23900.0,0.00018801,2]
[355020087,1740870632056,-250.0,0.00018806,2]
[355020089,1740870632068,-1000.0,0.00018812,2]
[355020091,1740870632078,-200.0,0.00018822,2]
[355020093,1740870632089,-241.14,0.00018834,2]
[355020095,1740870632100,-3742.72301446,0.00018866,2]
[355020097,1740870632111,-961.61,0.00019,2]
[355020099,1740870632122,-400.0,0.00019,2]
[355020101,1740870632132,-1000.0,0.0001902,2]
[355020103,1740870632143,-865.89,0.00019214,2]
[355020105,1740870632153,-1994.82980021,0.00019246,2]
[355020107,1740870632163,-9198.2959,0.00019809,2]
[355020109,1740870632174,-250.41698298,0.0001982,2]
[355020111,1740870632183,-1422.4949719,0.00019834,2]
[355020113,1740870632193,-150.0,0.00019845,2]
[355020115,1740870632203,-150.0,0.00019846,2]
[355020117,1740870632214,-150.0,0.00019852,2]
[355020119,1740870632224,-150.0,0.00019862,2]
[355020121,1740870632233,-203.38351651,0.00019873,2]
[355020123,1740870632243,-150.0,0.00019873,2]
[355020125,1740870632252,-150.0,0.0001988,2]
[355020127,1740870632262,-150.0,0.00019881,2]
[355020129,1740870632271,-150.0,0.00019883,2]
[355020131,1740870632286,-150.0,0.00019884,2]
[355020133,1740870632296,-150.0,0.00019887,2]
[355020135,1740870632306,-1000.0,0.00019888,2]
[355020137,1740870632315,-150.0,0.00019896,2]
[355020139,1740870632326,-150.0,0.00019899,2]
[355020141,1740870632336,-150.0,0.00019902,2]
[355020143,1740870632345,-150.0,0.00019908,2]
[355020145,1740870632355,-150.0,0.00019912,2]
[355020147,1740870632365,-1000.0,0.00019913,2]
[355020149,1740870632375,-1000.0,0.00019913,2]
[355020151,1740870632384,-150.0,0.00019913,2]
[355020153,1740870632394,-150.0,0.00019914,2]
[355020155,1740870632405,-150.0,0.00019918,2]
[355020157,1740870632414,-1000.0,0.0001992,2]
[355020159,1740870632423,-162.19887289,0.00019926,2]
[355020161,1740870632433,-150.0,0.00019927,2]
[355020163,1740870632443,-150.0,0.00019931,2]
[355020164,1740870632453,-1000.0,0.00019934,2]
[355020166,1740870632462,-1000.0,0.00019935,2]
[355020168,1740870632472,-182.17667251,0.00019939,2]
[355020170,1740870632482,-150.0,0.0001994,2]
[355020172,1740870632491,-150.0,0.00019942,2]
[355020174,1740870632501,-150.0,0.00019943,2]
[355020176,1740870632511,-150.0,0.00019944,2]
[355020178,1740870632520,-150.0,0.00019946,2]
[355020180,1740870632530,-150.0,0.0001996,2]
[355020182,1740870632540,-150.0,0.00019961,2]
[355020184,1740870632551,-150.0,0.00019964,2]
[355020186,1740870632560,-150.0,0.00019965,2]
[355020188,1740870632569,-150.0,0.00019967,2]
[355020190,1740870632579,-150.0,0.00019971,2]
[355020192,1740870632590,-150.0,0.00019972,2]
[355020194,1740870632600,-150.0,0.00019975,2]
[355020196,1740870632610,-150.0,0.00019977,2]
[355020198,1740870632620,-150.0,0.0001998,2]
[355020200,1740870632630,-150.0,0.0001998,2]
[355020202,1740870632640,-1000.0,0.00019994,2]
[355020204,1740870632650,-150.0,0.00019999,2]
[355020206,1740870632662,-151.67905147,0.0002,2]
[355020208,1740870632671,-168.60073,0.0002,2]
[355020210,1740870632681,-150.0,0.00020007,2]
[355020212,1740870632691,-150.0,0.00020015,2]
[355020214,1740870632700,-150.0,0.00020016,2]
[355020216,1740870632710,-150.0,0.00020024,2]
[355020218,1740870632719,-150.0,0.00020025,2]
[355020220,1740870632730,-150.0,0.0002003,2]
[355020222,1740870632740,-150.0,0.00020031,2]
[355020224,1740870632750,-150.0,0.00020042,2]
[355020226,1740870632760,-150.0,0.00020044,2]
[355020228,1740870632770,-150.0,0.00020048,2]
[355020230,1740870632779,-1000.0,0.0002005,2]
[355020232,1740870632789,-150.0,0.00020057,2]
[355020234,1740870632799,-150.0,0.00020058,2]
[355020236,1740870632809,-150.0,0.00020062,2]
[355020238,1740870632819,-150.0,0.00020066,2]
[355020240,1740870632829,-150.0,0.00020067,2]
[355020242,1740870632840,-150.0,0.00020071,2]
[355020244,1740870632850,-150.0,0.00020075,2]
[355020246,1740870632860,-150.0,0.00020077,2]
[355020248,1740870632870,-150.0,0.00020085,2]
[355020250,1740870632880,-150.0,0.00020085,2]
[355020252,1740870632890,-150.0,0.00020088,2]
[355020254,1740870632900,-1474.46,0.0002009,2]
[355020256,1740870632910,-150.0,0.00020091,2]
[355020257,1740870632920,-150.0,0.00020095,2]
[355020259,1740870632929,-150.0,0.00020098,2]
[355020261,1740870632939,-7339.280279,0.000201,2]
[355020263,1740870632948,-150.0,0.00020102,2]
[355020264,1740870632958,-769.0,0.00020103,2]
[355020266,1740870632967,-150.0,0.00020103,2]
[355020268,1740870632977,-150.0,0.00020104,2]
[355020270,1740870632987,-150.0,0.00020106,2]
[355020271,1740870632997,-154.32,0.00020107,2]
[355020272,1740870633007,-150.0,0.00020108,2]
[355020273,1740870633017,-150.0,0.00020116,2]
[355020274,1740870633027,-1000.0,0.00020119,2]
[355020275,1740870633037,-500.0,0.00020138,2]
[355020276,1740870633046,-500.0,0.00020138,2]
[355020277,1740870633056,-500.0,0.00020138,2]
[355020278,1740870633069,-500.0,0.00020138,2]
[355020279,1740870633080,-500.0,0.00020138,2]
[355020280,1740870633090,-466.1413,0.00020138,2]
[355020281,1740870633101,-1000.0,0.00020239,2]
[355020282,1740870633111,-1010.18648887,0.00020239,2]
[355020283,1740870633121,-2976.8788745,0.0002027,2]
[355020284,1740870633133,-1207.6168466,0.0002027,2]
[355020285,1740870633144,-182.38,0.00020327,2]
[355020286,1740870633154,-3742.72301446,0.00020348,2]
[355020287,1740870633164,-157.68,0.00020378,2]
[355020288,1740870633175,-1994.82980021,0.0002039,2]
[355020289,1740870633186,-500.0,0.000204,2]
[355020290,1740870633196,-500.0,0.000204,2]
[355020291,1740870633206,-154.32,0.00020443,2]
[355020292,1740870633216,-154.32,0.00020778,2]
[355020293,1740870633226,-450.0,0.00021,2]
[355020294,1740870633237,-154.32,0.00021113,2]
[355020295,1740870633247,-1000.0,0.00021163,2]
[355020296,1740870633258,-159.13,0.00021426,2]
[355020297,1740870633268,-154.32,0.00021448,2]
[355020298,1740870633278,-865.89,0.00021478,2]
[355020299,1740870633288,-1994.82980021,0.00021535,2]
[355020300,1740870633297,-154.32,0.00021783,2]
[355020302,1740870633307,-3742.72301446,0.00021831,3]
[355020304,1740870633318,-181.92,0.00021918,2]
[355020306,1740870633328,-150.0,0.00022029,2]
[355020308,1740870633339,-154.32,0.00022118,2]
[355020310,1740870633349,-168.7,0.00022511,2]
[355020312,1740870633359,-182.38,0.00022868,2]
[355020313,1740870633368,-500.0,0.00023,2]
[355020315,1740870633379,-500.0,0.0002302,30]
[355020317,1740870633389,-991.93343584,0.0002302,30]
[355020319,1740870633398,-500.0,0.0002302,30]
[355020321,1740870633408,-3742.72301446,0.00023314,3]
[355020323,1740870633418,-177.23413946,0.00023319,2]
[355020325,1740870633428,-1422.4949719,0.00023344,2]
[355020327,1740870633440,-155.3,0.00023498,2]
[355020329,1740870633450,-1000.0,0.00023515,2]
[355020331,1740870633460,-157.68,0.00023741,2]
[355020333,1740870633469,-865.89,0.00023742,2]
[355020335,1740870633480,-500.0,0.00024395,2]
[355020337,1740870633491,-1385.0,0.000245,2]
[355020339,1740870633502,-2273.26568004,0.00024557,2]
[355020341,1740870633513,-151.0,0.00024657,7]
[355020343,1740870633524,-151.0,0.00024657,7]
[355020345,1740870633535,-151.0,0.00024657,7]
[355020347,1740870633545,-155.130177,0.00024657,7]
[355020349,1740870633555,-151.0,0.00024657,7]
[355020351,1740870633566,-151.0,0.00024657,7]
[355020352,1740870633577,-151.0,0.00024657,7]
[355020355,1740870633588,-151.0,0.00024657,7]
[355020357,1740870633599,-297.417321,0.00024657,7]
[355020359,1740870633610,-151.0,0.00024657,7]
[355020360,1740870633621,-151.0,0.00024657,7]
[355020362,1740870633631,-151.0,0.00024657,7]
[355020364,1740870633642,-151.0,0.00024657,7]
[355020366,1740870633652,-151.0,0.00024657,7]
[355020368,1740870633663,-151.0,0.00024657,7]
[355020370,1740870633674,-151.0,0.00024657,7]
[355020372,1740870633685,-151.0,0.00024657,7]
[355020374,1740870633696,-151.0,0.00024657,7]
[355020376,1740870633706,-504.66752174,0.00024657,2]
[355020378,1740870633717,-151.0,0.00024657,7]
[355020380,1740870633727,-151.0,0.00024657,7]
[355020382,1740870633738,-151.0,0.00024657,7]
[355020384,1740870633748,-151.0,0.00024657,7]
[355020386,1740870633758,-151.0,0.00024657,7]
[355020388,1740870633769,-151.0,0.00024657,7]
[355020390,1740870633779,-152.837338,0.00024657,7]
[355020392,1740870633788,-151.0,0.00024657,7]
[355020394,1740870633798,-151.0,0.00024657,7]
[355020396,1740870633808,-151.0,0.00024657,7]
[355020398,1740870633818,-151.0,0.00024657,7]
[355020400,1740870633829,-151.0,0.00024657,7]
[355020402,1740870633840,-151.0,0.00024657,7]
[355020404,1740870633850,-153.76939,0.00024657,7]
[355020406,1740870633861,-500.0,0.00024657,2]
[355020408,1740870633872,-500.0,0.00024657,2]
[355020410,1740870633882,-500.0,0.00024657,2]
[355020412,1740870633892,-500.0,0.00024657,2]
[355020414,1740870633903,-500.0,0.00024657,2]
[355020416,1740870633913,-151.0,0.00024657,7]
[355020418,1740870633924,-151.0,0.00024657,7]
[355020420,1740870633933,-161.418581,0.00024657,7]
[355020422,1740870633943,-500.0,0.00024657,2]
[355020424,1740870633953,-500.0,0.00024657,2]
[355020426,1740870633964,-151.0,0.00024657,7]
[355020428,1740870633974,-151.0,0.00024657,7]
[355020430,1740870633984,-151.0,0.00024657,7]
[355020432,1740870633993,-151.0,0.00024657,7]
[355020434,1740870634004,-151.0,0.00024657,7]
[355020435,1740870634014,-151.0,0.00024657,7]
[355020437,1740870634025,-151.0,0.00024657,7]
[355020440,1740870634037,-151.0,0.00024657,7]
[355020442,1740870634051,-151.0,0.00024657,7]
[355020444,1740870634063,-151.0,0.00024657,7]
[355020446,1740870634076,-153.480811,0.00024657,7]
[355020458,1740870634221,-151.0,0.00024657,7]
[355020460,1740870634233,-495.64469545,0.00024657,2]
[355020462,1740870634244,-151.0,0.00024657,7]
[355020464,1740870634255,-151.0,0.00024657,7]
[355020466,1740870634266,-151.0,0.00024657,7]
[355020468,1740870634277,-194.311317,0.00024657,7]
[355020470,1740870634287,-500.0,0.00024657,2]
[355020472,1740870634298,-500.0,0.00024657,2]
[355020473,1740870634307,-500.0,0.00024657,2]
[355020475,1740870634318,-231.732911,0.00024657,7]
[355020477,1740870634329,-231.732911,0.00024657,7]
[355020479,1740870634344,-231.732911,0.00024657,7]
[355020481,1740870634355,-231.732911,0.00024657,7]
[355020483,1740870634365,-151.0,0.00024657,7]
[355020485,1740870634376,-288.644351,0.00024657,7]
[355020487,1740870634387,-500.0,0.00024657,2]
[355020489,1740870634398,-500.0,0.00024657,2]
[355020491,1740870634409,-500.0,0.00024657,2]
[355020493,1740870634419,-500.0,0.00024657,2]
[355020495,1740870634429,-500.0,0.00024657,2]
[355020497,1740870634439,-500.0,0.00024657,2]
[355020499,1740870634449,-500.0,0.00024657,2]
[355020501,1740870634460,-500.0,0.00024657,2]
[355020503,1740870634470,-539.73241236,0.00024657,2]
[355020505,1740870634481,-500.0,0.00024657,2]
[355020507,1740870634490,-500.0,0.00024657,2]
[355020509,1740870634501,-500.0,0.00024657,2]
[355020511,1740870634511,-500.0,0.00024657,2]
[355020513,1740870634520,-151.0,0.00024657,7]
[355020515,1740870634531,-154.571206,0.00024657,7]
[355020517,1740870634542,-500.0,0.00024657,2]
[355020519,1740870634552,-500.0,0.00024657,2]
[355020521,1740870634562,-500.0,0.00024657,2]
[355020523,1740870634571,-411.062255,0.00024657,2]
[355020525,1740870634581,-500.0,0.00024657,2]
[355020526,1740870634593,-500.0,0.00024657,2]
[355020528,1740870634603,-370.98022423,0.00024657,2]
[355020530,1740870634613,-500.0,0.00024657,2]
[355020532,1740870634629,-1573.23,0.00024657,2]
[355020534,1740870634640,-500.0,0.00024657,2]
[355020536,1740870634650,-2055.311274,0.00024657,2]
[355020538,1740870634663,-500.0,0.00024657,2]
[355020540,1740870634673,-500.0,0.00024657,2]
[355020542,1740870634684,-150.369306,0.00024657,2]
[355020544,1740870634693,-628.18808951,0.00024657,2]
[355020546,1740870634703,-604.16,0.00024657,2]
[355020548,1740870634719,-500.0,0.00024657,2]
[355020550,1740870634730,-500.0,0.00024657,2]
[355020552,1740870634741,-500.0,0.00024657,2]
[355020554,1740870634751,-151.0,0.00024657,7]
[355020556,1740870634761,-151.0,0.00024657,7]
[355020558,1740870634771,-151.0,0.00024657,7]
[355020560,1740870634782,-151.0,0.00024657,7]
[355020562,1740870634791,-500.0,0.00024657,2]
[355020564,1740870634801,-500.0,0.00024657,2]
[355020566,1740870634811,-500.0,0.00024657,2]
[355020568,1740870634821,-399.55137874,0.00024657,2]
[355020570,1740870634830,-500.0,0.00024657,2]
[355020572,1740870634841,-500.0,0.00024657,2]
[355020574,1740870634851,-241.48456,0.00024657,2]
[355020576,1740870634861,-500.0,0.00024657,2]
[355020578,1740870634871,-246.54888107,0.00024657,2]
[355020580,1740870634880,-500.0,0.00024657,2]
[355020582,1740870634890,-500.0,0.00024657,2]
[355020583,1740870634899,-500.0,0.00024657,2]
[355020585,1740870634909,-500.0,0.00024657,2]
[355020587,1740870634919,-500.0,0.00024657,2]
[355020589,1740870634929,-151.0,0.00024657,7]
[355020591,1740870634939,-151.0,0.00024657,7]
[355020593,1740870634948,-500.0,0.00024657,2]
[355020595,1740870634958,-151.0,0.00024657,7]
[355020597,1740870634967,-151.0,0.00024657,7]
[355020599,1740870634978,-586.462503,0.00024657,2]
[355020601,1740870634988,-500.0,0.00024657,2]
[355020603,1740870634998,-500.0,0.00024657,2]
[355020605,1740870635008,-1110.9,0.00024657,2]
[355020607,1740870635018,-500.0,0.00024657,2]
[355020609,1740870635028,-500.0,0.00024657,2]
[355020611,1740870635037,-151.0,0.00024657,7]
[355020613,1740870635047,-151.0,0.00024657,7]
[355020615,1740870635057,-500.0,0.00024657,2]
[355020617,1740870635069,-151.0,0.00024657,7]
[355020619,1740870635078,-151.0,0.00024657,7]
[355020621,1740870635089,-569.78,0.00024657,2]
[355020623,1740870635099,-500.0,0.00024657,2]
[355020625,1740870635109,-500.0,0.00024657,2]
[355020627,1740870635119,-877.07,0.00024657,2]
[355020629,1740870635128,-500.0,0.00024657,2]
[355020631,1740870635139,-151.0,0.00024657,7]
[355020632,1740870635148,-500.0,0.00024657,2]
[355020634,1740870635159,-151.0,0.00024657,7]
[355020636,1740870635168,-500.0,0.00024657,2]
[355020638,1740870635178,-500.0,0.00024657,2]
[355020640,1740870635187,-500.64670075,0.00024657,2]
[355020642,1740870635197,-500.0,0.00024657,2]
[355020644,1740870635206,-500.0,0.00024657,2]
[355020646,1740870635216,-500.0,0.00024657,2]
[355020648,1740870635225,-500.0,0.00024657,2]
[355020650,1740870635235,-500.0,0.00024657,2]
[355020652,1740870635245,-500.0,0.00024657,2]
[355020654,1740870635254,-500.0,0.00024657,2]
[355020656,1740870635264,-500.0,0.00024657,2]
[355020658,1740870635273,-500.0,0.00024657,2]
[355020660,1740870635283,-500.0,0.00024657,2]
[355020662,1740870635293,-500.0,0.00024657,2]
[355020664,1740870635303,-500.0,0.00024657,2]
[355020666,1740870635312,-282.24623926,0.00024657,2]
[355020668,1740870635322,-590.55410169,0.00024657,2]
[355020670,1740870635333,-1942.15,0.00024657,2]
[355020672,1740870635345,-500.0,0.00024657,2]
[355020674,1740870635356,-500.0,0.00024657,2]
[355020675,1740870635366,-5104.76189731,0.00024657,2]
[355020677,1740870635376,-500.0,0.00024657,2]
[355020679,1740870635386,-500.0,0.00024657,2]
[355020681,1740870635396,-504.7,0.00024657,2]
[355020683,1740870635406,-500.0,0.00024657,2]
[355020685,1740870635416,-500.0,0.00024657,2]
[355020688,1740870635427,-262.11684979,0.00024657,2]
[355020689,1740870635436,-190.54560686,0.00024657,2]
[355020691,1740870635446,-612.55,0.00024657,2]
[355020693,1740870635456,-500.0,0.00024657,2]
[355020695,1740870635465,-500.0,0.00024657,2]
[355020697,1740870635476,-500.0,0.00024657,2]
[355020699,1740870635486,-500.0,0.00024657,2]
[355020702,1740870635496,-813.33,0.00024657,2]
[355020704,1740870635507,-500.0,0.00024657,2]
[355020705,1740870635516,-500.0,0.00024657,2]
[355020707,1740870635526,-500.0,0.00024657,2]
[355020709,1740870635536,-500.0,0.00024657,2]
[355020711,1740870635546,-1898.33,0.00024657,2]
[355020713,1740870635556,-500.0,0.00024657,2]
[355020715,1740870635566,-504.34,0.00024657,2]
[355020717,1740870635576,-500.0,0.00024657,2]
[355020719,1740870635586,-500.0,0.00024657,2]
[355020721,1740870635598,-498.64995524,0.00024657,2]
[355020723,1740870635608,-500.0,0.00024657,2]
[355020725,1740870635618,-500.0,0.00024657,2]
[355020727,1740870635629,-500.0,0.00024657,2]
[355020729,1740870635639,-500.0,0.00024657,2]
[355020731,1740870635649,-500.0,0.00024657,2]
[355020733,1740870635661,-1895.85,0.00024657,2]
[355020735,1740870635671,-500.0,0.00024657,2]
[355020737,1740870635682,-500.0,0.00024657,2]
[355020740,1740870635693,-500.0,0.00024657,2]
[355020741,1740870635703,-500.0,0.00024657,2]
[355020743,1740870635714,-500.0,0.00024657,2]
[355020745,1740870635724,-500.0,0.00024657,2]
[355020747,1740870635735,-500.0,0.00024657,2]
[355020749,1740870635744,-500.0,0.00024657,2]
[355020751,1740870635754,-500.0,0.00024657,2]
[355020753,1740870635763,-500.0,0.00024657,2]
[355020755,1740870635773,-500.0,0.00024657,2]
[355020757,1740870635783,-1687.15,0.00024657,2]
[355020759,1740870635792,-500.0,0.00024657,2]
[355020761,1740870635803,-500.0,0.00024657,2]
[355020763,1740870635813,-500.0,0.00024657,2]
[355020765,1740870635823,-566.09,0.00024657,2]
[355020767,1740870635833,-151.0,0.00024657,7]
[355020769,1740870635845,-500.0,0.00024657,2]
[355020771,1740870635855,-500.0,0.00024657,2]
[355020773,1740870635864,-155.436108,0.00024657,7]
[355020775,1740870635873,-500.0,0.00024657,2]
[355020777,1740870635883,-182.871675,0.00024657,7]
[355020779,1740870635892,-500.0,0.00024657,2]
[355020781,1740870635902,-500.0,0.00024657,2]
[355020783,1740870635913,-500.0,0.00024657,2]
[355020785,1740870635922,-500.0,0.00024657,2]
[355020787,1740870635932,-500.0,0.00024657,2]
[355020789,1740870635942,-507.39,0.00024657,2]
[355020791,1740870635951,-500.0,0.00024657,2]
[355020793,1740870635960,-368.22055765,0.00024657,2]
[355020794,1740870635969,-500.0,0.00024657,2]
[355020796,1740870635978,-524.67,0.00024657,2]
[355020798,1740870635987,-500.0,0.00024657,2]
[355020800,1740870635998,-500.0,0.00024657,2]